bitfinex-derivatives/quotes_ETHF0:USTF0_20250624
["timestamp","ask_amount","ask_price","bid_price","bid_amount"]
[1750791259487,25.116,2448.4,2448.3,1.29317]
[1750791259891,25.116,2448.4,2448.3,2.66147]
[1750791260788,3.8704,2448.9,2448.3,2.0083]
[1750791261093,0.65309,2448.6,2448.4,0.65312]
[1750791261393,25.116,2448.5,2448.4,2.34592]
[1750791261987,25.116,2448.5,2448.4,1.6928]
[1750791262193,26.83697735,2448.5,2448.4,0.36]
[1750791262495,25.76912,2448.5,2448.4,0.36]
[1750791262895,31.83646357,2448.5,2448.4,0.36]
[1750791263190,33.80906357,2448.5,2448.4,0.36]
[1750791263785,0.65322,2448.1,2447.9,0.65328]
[1750791263987,32.3537,2448.0,2447.9,3.60328]
[1750791264189,32.3537,2448.0,2447.9,2.95]
[1750791264190,33.00695,2448.0,2447.9,2.95]
[1750791265095,0.65329,2447.9,2447.6,0.65334]
[1750791265402,0.6533,2447.8,2447.6,0.80334]
[1750791265598,25.133,2447.7,2447.6,0.80334]
[1750791265795,25.78633,2447.7,2447.4,0.6534]
[1750791265995,6.546,2447.6,2447.4,0.51]
[1750791266290,6.546,2447.6,2447.5,0.65338]
[1750791266599,6.546,2447.6,2447.5,0.81338]
[1750791267295,6.546,2447.6,2447.5,0.16]
[1750791267491,0.65341,2447.4,2447.2,0.65345]
[1750791267685,25.152,2447.3,2447.2,0.26]
[1750791267890,25.80544,2447.3,2447.2,0.26]
[1750791268494,29.01324,2447.3,2447.2,0.26]
[1750791269994,28.3598,2447.3,2447.2,0.91346]
[1750791270299,29.01324,2447.3,2447.2,0.26]
[1750791270996,28.3598,2447.3,2447.2,0.26]
[1750791271390,29.01324,2447.3,2447.2,0.26]
[1750791271589,28.3598,2447.3,2447.2,0.26]
[1750791271798,29.01324,2447.3,2447.2,0.26]
[1750791273294,34.01324,2447.3,2447.2,0.26]
[1750791273486,34.72164,2447.3,2447.2,0.26]
[1750791273692,0.65356,2446.9,2446.7,0.6536]
[1750791273892,31.687,2446.8,2446.7,3.5736]
[1750791274698,31.687,2446.8,2446.7,4.8892]
[1750791275299,31.687,2446.8,2446.7,4.2356]
[1750791275488,32.34057,2446.8,2446.7,2.92]
[1750791276194,32.34057,2446.8,2446.2,0.6881]
[1750791276195,36.687,2446.8,2446.2,0.6881]
[1750791276392,3.86144,2446.6,2446.2,2.6781]
[1750791276588,25.136,2446.5,2446.4,0.65366]
[1750791276790,25.136,2446.5,2446.4,1.61366]
[1750791277594,2.34188,2446.9,2446.4,4.1678]
[1750791277595,3.9158,2446.9,2446.4,4.1678]
[1750791277902,32.38159,2446.8,2446.6,0.65361]
[1750791278201,32.38159,2446.8,2446.6,0.11]
[1750791278394,31.728,2446.8,2446.7,0.6536]
[1750791278591,31.728,2446.8,2446.7,0.6636]
[1750791279102,31.728,2446.8,2445.3,1.6349]
[1750791279103,1.63401,2446.7,2445.3,1.6349]
[1750791279303,1.63401,2446.7,2445.6,0.6641]
[1750791279304,3.2078,2446.2,2445.6,0.6641]
[1750791279607,31.766,2446.1,2445.6,7.9519]
[1750791279795,31.766,2446.1,2445.9,0.6538]
[1750791279995,31.766,2446.1,2446.0,0.65378]
[1750791280194,31.766,2446.1,2446.0,1.17378]
[1750791280403,31.766,2446.1,2446.0,2.48938]
[1750791280597,3.2078,2446.5,2446.0,1.8356]
[1750791280898,32.46469,2446.4,2446.0,0.52]
[1750791281107,6.572,2446.3,2446.2,0.65373]
[1750791281406,6.572,2446.3,2446.2,0.1]
[1750791281702,7.2257,2446.3,2446.2,0.1]
[1750791282207,6.572,2446.3,2446.2,0.1]
[1750791282805,7.2257,2446.3,2446.2,0.1]
[1750791283203,0.65384,2445.8,2445.7,0.19]
[1750791283506,0.65406,2445.0,2444.8,2.0018]
[1750791283704,31.861,2444.9,2444.8,4.0318]
[1750791283905,3.86181,2445.2,2444.8,4.68589]
[1750791284203,25.313,2445.1,2445.0,3.86185]
[1750791284404,25.313,2445.1,2445.0,4.17185]
[1750791285399,0.6539,2445.6,2445.0,8.5178]
[1750791285703,31.884,2445.5,2445.4,0.65394]
[1750791285910,31.883,2445.5,2445.4,3.54674]
[1750791286596,31.899,2445.6,2445.4,2.8928]
[1750791286797,32.5529,2445.6,2445.4,3.54674]
[1750791287096,3.2078,2445.9,2445.4,2.8928]
[1750791287305,31.899,2445.8,2445.4,3.54673]
[1750791287805,0.6539,2445.6,2445.4,3.54673]
[1750791288201,0.65388,2445.7,2445.4,3.54673]
[1750791288399,32.55285,2445.8,2445.5,0.65391]
[1750791288601,32.55285,2445.8,2445.6,1.3428]
[1750791288801,32.55285,2445.8,2445.6,1.3528]
[1750791289406,31.899,2445.8,2445.6,1.3528]
[1750791289803,32.55284,2445.8,2445.6,1.3528]
[1750791290196,0.65386,2445.7,2445.6,0.01]
[1750791290401,1.33646,2445.7,2445.6,0.01]
[1750791290905,1.33646,2445.7,2445.4,0.6587]
[1750791290906,0.65391,2445.6,2445.4,0.6587]
[1750791291101,28.5328,2445.5,2445.4,0.6587]
[1750791291408,29.18672,2445.5,2445.4,0.6587]
[1750791292004,29.18672,2445.5,2445.1,1.3428]
[1750791292005,0.654,2445.2,2445.1,1.3428]
[1750791292308,35.7588,2445.2,2445.1,0.18]
[1750791292804,36.81092254,2445.2,2445.1,0.18]
[1750791293006,35.7588,2445.2,2445.1,0.18]
[1750791293404,36.81103276,2445.2,2445.1,0.18]
[1750791293911,35.7588,2445.2,2445.1,0.18]
[1750791295513,36.81126802,2445.2,2445.1,0.18]
[1750791296410,1.63526,2444.9,2443.9,7.24283482]
[1750791296615,33.2932,2444.8,2444.2,0.684]
[1750791296815,0.65419,2444.5,2444.2,4.12825]
[1750791297118,25.313,2444.4,2444.2,4.12825]
[1750791297318,7.23024,2444.3,2444.2,2.79]
[1750791297613,7.23024,2444.3,2444.0,0.6648]
[1750791297614,0.65434,2443.9,2443.8,0.6517]
[1750791297820,32.56234,2443.9,2443.8,2.6217]
[1750791298116,35.77014,2443.9,2443.8,1.97]
[1750791298714,35.1158,2443.9,2443.3,4.5465]
[1750791298910,0.65448,2443.4,2443.3,1.86]
[1750791299115,32.56648,2443.4,2443.3,1.86]
[1750791299315,31.912,2443.4,2443.3,1.86]
[1750791299514,32.56648,2443.4,2443.3,1.86]
[1750791299717,31.912,2443.4,2442.8,3.64462]
[1750791299915,3.2078,2443.1,2442.9,1.3175]
[1750791300121,31.93,2443.0,2442.9,2.7375]
[1750791300321,32.58459,2443.0,2442.9,1.42]
[1750791301011,34.35114588,2443.0,2442.4,2.18]
[1750791301212,3.2078,2442.5,2442.4,2.46]
[1750791301408,35.1478,2442.5,2442.4,2.46]
[1750791301921,0.65481,2442.2,2441.8,0.65491]
[1750791302107,35.1538,2442.1,2441.8,1.36]
[1750791302306,31.97,2442.0,2441.8,1.36]
[1750791302509,3.2078,2442.1,2441.9,1.3797]
[1750791302715,3.2078,2442.7,2442.6,0.65469]
[1750791302920,25.403,2442.7,2442.4,3.2078]
[1750791303128,25.403,2442.7,2442.5,2.0344]
[1750791303325,25.403,2442.7,2442.5,2.2444]
[1750791303519,25.403,2442.7,2442.6,0.65469]
[1750791303725,25.403,2442.7,2442.6,1.4248]
[1750791304029,28.6108,2442.7,2442.6,1.4248]
[1750791305122,28.6108,2442.7,2442.6,2.07949]
[1750791305324,28.6108,2442.7,2442.6,0.08]
[1750791305722,28.6108,2442.7,2442.6,0.73469]
[1750791306427,28.6108,2442.7,2442.6,0.08]
[1750791306623,28.6108,2442.7,2442.6,2.14819]
[1750791307626,3.2078,2442.7,2442.6,2.14819]
[1750791307827,35.3508,2442.7,2442.6,2.14819]
[1750791308530,35.3508,2442.7,2442.6,1.4935]
[1750791308732,0.6547,2442.6,2442.4,0.7498515]
[1750791309031,25.425,2442.5,2442.4,1.9746015]
[1750791309227,26.07972,2442.5,2442.4,0.6337515]
[1750791309530,26.07972,2442.5,2442.4,0.0637515]
[1750791310625,9.9228,2442.7,2442.4,0.0637515]
[1750791310626,3.2078,2442.7,2442.4,0.0637515]
[1750791310821,32.156,2442.6,2442.4,0.0637515]
[1750791311023,0.65472,2442.5,2442.4,0.0637515]
[1750791311326,0.65472,2442.5,2442.4,0.06]
[1750791311327,32.152,2442.5,2442.4,0.06]
[1750791311530,32.163,2442.5,2442.4,0.06]
[1750791311833,32.163,2442.5,2442.4,2.01324]
[1750791312329,0.6547,2442.6,2442.4,1.4222515]
[1750791312730,32.81072,2442.5,2442.4,1.4222515]
[1750791312928,32.81072,2442.5,2442.4,0.0637515]
[1750791314225,32.81072,2442.5,2442.4,0.0737515]
[1750791314425,32.81072,2442.5,2442.4,0.0637515]
[1750791315128,37.81072,2442.5,2442.4,0.0637515]
[1750791315528,38.52192,2442.5,2442.4,0.0637515]
[1750791315927,38.52192,2442.5,2441.6,1.4035]
[1750791315928,1.63687,2442.4,2441.6,1.4035]
[1750791316236,0.65493,2441.7,2441.6,2.28]
[1750791316442,32.82493,2441.7,2441.6,2.28]
[1750791317829,0.65502,2441.4,2441.3,1.3646]
[1750791318035,29.31282,2441.4,2441.3,2.6546]
[1750791319129,29.31282,2441.4,2441.3,1.29]
[1750791319335,29.64571074,2441.4,2441.3,1.29]
[1750791319726,0.65512,2441.0,2440.9,1.3674]
[1750791319921,32.165,2441.0,2440.9,1.3674]
[1750791320127,32.165,2441.0,2440.9,2.2574]
[1750791320328,3.2078,2441.4,2440.9,2.2574]
[1750791320636,26.09703,2441.4,2441.1,0.65508]
[1750791320930,25.442,2441.4,2441.2,1.3674]
[1750791321131,25.442,2441.4,2441.3,0.65504]
[1750791321325,25.442,2441.4,2441.3,1.09504]
[1750791321529,3.2078,2441.7,2441.3,10.0152]
[1750791321530,25.451,2441.5,2441.3,10.0152]
[1750791321827,1.63695,2442.3,2441.3,10.0152]
[1750791322027,25.455,2442.2,2441.7,3.2078]
[1750791322228,0.65491,2441.8,2441.7,0.67]
[1750791322424,26.12091,2441.8,2441.7,0.67]
[1750791324534,25.466,2441.8,2441.7,0.67]
[1750791324728,26.12091,2441.8,2441.7,0.67]
[1750791325327,27.17455135,2441.8,2441.7,0.67]
[1750791326741,26.51964135,2441.8,2441.7,0.67]
[1750791326941,26.51964135,2441.8,2441.7,1.32493]
[1750791327137,25.487,2441.8,2441.7,9.53273]
[1750791327331,26.5420843,2441.8,2441.7,9.53273]
[1750791327835,1.0550843,2441.8,2441.7,9.53273]
[1750791328038,25.5,2441.9,2441.8,0.65491]
[1750791328343,3.2078,2442.5,2442.3,0.65477]
[1750791328344,5.60455811,2442.5,2442.3,0.65477]
[1750791328529,33.27675802,2442.4,2442.3,0.68]
[1750791328730,33.27675802,2442.4,2442.3,1.33477]
[1750791328929,1.05775802,2442.4,2442.3,1.33477]
[1750791329832,1.71250802,2442.4,2442.3,1.33477]
[1750791330441,1.05775802,2442.4,2442.3,1.33477]
[1750791331544,25.531,2442.5,2442.4,0.65475]
[1750791331744,26.59000578,2442.5,2442.4,5.06255]
[1750791332047,26.57000578,2442.5,2442.4,5.06255]
[1750791333543,26.57000578,2442.5,2442.4,1.2]
[1750791333837,32.22472578,2442.5,2442.4,1.2]
[1750791334032,1.63694,2442.3,2441.8,0.6549]
[1750791334227,0.65488,2441.9,2441.8,1.3549]
[1750791334437,26.16588,2441.9,2441.8,1.3549]
[1750791334842,4.03356811,2442.5,2441.8,0.7]
[1750791335141,0.65482,2442.2,2442.0,0.65484]
[1750791335336,27.21978319,2442.1,2442.0,1.8246]
[1750791337140,27.21978319,2442.1,2442.0,2.47945]
[1750791337141,26.56495319,2442.1,2442.0,2.47945]
[1750791337642,27.21978319,2442.1,2442.0,1.8246]
[1750791337843,27.21978319,2442.1,2442.0,2.47945]
[1750791338044,26.55495319,2442.1,2442.0,2.47945]
[1750791338344,1.71278319,2442.1,2442.0,2.47945]
[1750791338644,26.54995319,2442.1,2442.0,2.47945]
[1750791338842,26.54795319,2442.1,2442.0,2.47945]
[1750791339342,27.20278319,2442.1,2442.0,2.47945]
[1750791339939,1.71278319,2442.1,2442.0,2.47945]
[1750791340352,27.18978319,2442.1,2442.0,1.8246]
[1750791340646,26.53495319,2442.1,2442.0,2.47945]
[1750791340835,27.18978319,2442.1,2442.0,1.8246]
[1750791341036,1.71278319,2442.1,2442.0,1.8246]
[1750791341234,27.18278319,2442.1,2442.0,0.42]
[1750791341544,27.18278319,2442.1,2441.0,6.749]
[1750791341545,0.65501,2441.4,2441.3,5.2183]
[1750791341743,1.63728,2441.8,2441.3,6.60334]
[1750791341744,26.12301,2441.5,2441.3,6.60334]
[1750791342041,26.12301,2441.5,2441.3,5.9483]
[1750791342243,26.12301,2441.5,2441.4,0.65501]
[1750791342444,25.468,2441.5,2441.4,2.59961]
[1750791343642,25.492,2441.7,2441.6,0.65496]
[1750791343849,25.49,2441.9,2441.6,3.7178]
[1750791344037,25.49,2441.9,2441.7,1.95422]
[1750791344243,25.49,2441.9,2441.8,1.95421]
[1750791344441,26.54879518,2441.9,2441.8,2.28421]
[1750791344637,27.20367518,2441.9,2441.8,2.28421]
[1750791344842,27.20367518,2441.9,2441.8,1.6293]
[1750791345441,25.49,2441.9,2441.8,2.28421]
[1750791346353,26.14488,2441.9,2441.8,2.28421]
[1750791346553,25.49,2441.9,2441.8,2.28421]
[1750791346951,26.14488,2441.9,2441.8,2.28421]
[1750791347455,25.49,2441.9,2441.8,2.28421]
[1750791347858,26.14488,2441.9,2441.8,2.28421]
[1750791348051,25.49,2441.9,2441.8,2.28421]
[1750791348250,26.14488,2441.9,2441.8,2.28421]
[1750791348547,0.65488,2441.9,2441.8,2.28421]
[1750791348747,25.495,2441.9,2441.8,2.28421]
[1750791348961,26.14988,2441.9,2441.8,2.28421]
[1750791349754,25.495,2441.9,2441.8,2.3479615]
[1750791350459,26.14988,2441.9,2441.8,2.3479615]
[1750791350852,25.495,2441.9,2441.8,2.3479615]
[1750791351048,26.14988,2441.9,2441.8,2.3479615]
[1750791352360,26.14988,2441.9,2441.8,1.6930515]
[1750791352560,26.14988,2441.9,2441.8,0.3937515]
[1750791352758,27.21118166,2441.9,2441.8,0.3937515]
[1750791352951,27.21118166,2441.9,2441.8,0.33]
[1750791353358,27.21118166,2441.9,2441.8,0.24]
[1750791353862,27.21118166,2441.9,2441.8,0.3037515]
[1750791354860,1.71618166,2441.9,2441.8,0.3037515]
[1750791355075,26.50830166,2441.9,2441.8,0.9586615]
[1750791356976,25.447,2441.9,2441.8,0.9586615]
[1750791357879,27.16506643,2441.9,2441.8,0.3037515]
[1750791359472,27.16506643,2441.9,2441.8,1.6156515]
[1750791360879,27.16506643,2441.9,2441.8,0.3037515]
[1750791362281,1.63734,2441.8,2441.1,1.3105]
[1750791362478,3.2078,2441.4,2441.1,1.08]
[1750791362779,26.09605,2441.3,2441.1,1.08]
[1750791363076,26.09605,2441.3,2441.2,1.3105]
[1750791363267,26.09605,2441.3,2441.2,1.8505]
[1750791363463,27.1596705,2441.3,2441.2,1.8505]
[1750791363667,26.09605,2441.3,2441.2,1.8505]
[1750791364672,26.09604,2441.3,2441.2,1.8505]
[1750791364876,27.15888435,2441.3,2441.2,0.54]
[1750791366572,29.19628435,2441.3,2441.2,0.54]
[1750791366776,35.94628435,2441.3,2441.2,0.54]
[1750791368176,34.58668435,2441.3,2441.2,0.54]
[1750791371079,1.63782,2441.0,2440.1,3.2078]
[1750791371274,0.65532,2440.3,2440.1,9.25316]
[1750791371469,0.65532,2440.3,2440.2,1.3634]
[1750791371785,29.25707,2440.5,2440.3,0.6553]
[1750791372080,0.65528,2440.4,2440.3,2.04]
[1750791373883,28.6018,2440.5,2440.3,2.04]
[1750791374081,0.65528,2440.4,2440.3,2.04]
[1750791374588,1.32518,2440.4,2440.3,2.04]
[1750791375478,2.68188,2440.4,2440.3,2.04]
[1750791375877,1.32518,2440.4,2440.3,2.04]
[1750791377785,0.6554,2440.0,2439.7,0.6493]
[1750791377987,25.397,2439.9,2439.8,0.65544]
[1750791378177,3.2078,2440.1,2439.8,0.65544]
[1750791378178,3.2078,2440.1,2440.0,0.65539]
[1750791378377,28.6578,2440.1,2440.0,1.18539]
[1750791378988,28.6578,2440.1,2440.0,0.53]
[1750791379486,28.6578,2440.1,2440.0,1.18539]
[1750791380891,29.31316,2440.1,2440.0,0.53]
[1750791381081,28.6578,2440.1,2440.0,1.18539]
[1750791382587,25.45,2440.1,2440.0,1.18539]
[1750791382789,3.8777,2440.4,2440.0,0.53]
[1750791382990,25.473,2440.3,2440.2,0.65534]
[1750791383190,25.473,2440.3,2440.2,1.55114]
[1750791384092,25.473,2440.3,2440.2,2.25074]
[1750791384290,25.459,2440.8,2440.2,4.8032]
[1750791384588,3.2078,2440.6,2440.3,0.65531]
[1750791384783,25.459,2440.5,2440.4,0.65527]
[1750791384980,26.11426,2440.5,2440.4,2.2837]
[1750791385589,26.11426,2440.5,2440.4,0.94]
[1750791385780,25.459,2440.5,2440.1,0.65535]
[1750791385977,28.6668,2440.5,2440.1,0.43]
[1750791386183,0.65532,2440.3,2440.1,1.08535]
[1750791386383,25.474,2440.2,2440.1,1.08535]
[1750791388585,26.12934,2440.2,2440.1,0.43]
[1750791388786,28.6818,2440.2,2440.1,0.43]
[1750791388985,28.6818,2440.2,2440.1,1.08536]
[1750791389485,29.33714,2440.2,2440.1,0.43]
[1750791390496,36.03414,2440.2,2440.1,0.43]
[1750791391887,36.03414,2440.2,2439.9,0.65541]
[1750791391888,1.63852,2440.0,2438.6,3.2078]
[1750791392193,3.2078,2439.6,2439.0,1.33734]
[1750791392393,33.33234688,2439.5,2439.1,1.3181]
[1750791392698,0.6556,2439.2,2439.1,1.3281]
[1750791393098,0.6556,2439.2,2439.1,1.3181]
[1750791394191,0.6556,2439.2,2439.1,1.3381]
[1750791395501,0.65558,2439.3,2439.1,1.99372]
[1750791396199,0.6556,2439.2,2439.1,1.3381]
[1750791396397,0.65552,2439.5,2439.1,6.3381]
[1750791396598,0.65554,2439.5,2439.2,0.7058]
[1750791396800,0.65554,2439.5,2439.3,2.05467]
[1750791397001,0.65554,2439.5,2439.3,3.08467]
[1750791397191,0.65555,2439.4,2439.3,2.4291]
[1750791397697,0.65552,2439.5,2439.4,0.65555]
[1750791397901,26.22151,2439.6,2439.4,0.61]
[1750791398195,3.2078,2439.9,2439.4,2.035]
[1750791398393,28.7658,2439.9,2439.5,3.2078]
[1750791398595,7.35437,2440.1,2440.0,0.65539]
[1750791398794,0.6554,2440.0,2439.8,0.65542]
[1750791399001,0.6554,2440.0,2439.9,2.1308]
[1750791399203,0.6554,2440.0,2439.9,2.8508]
[1750791400396,32.265,2440.1,2440.0,0.65539]
[1750791400605,0.65532,2440.3,2440.0,2.73979]
[1750791400804,25.566,2440.2,2440.1,0.65536]
[1750791401104,25.566,2440.2,2440.1,1.7844]
[1750791401405,25.566,2440.2,2440.1,2.43976]
[1750791401596,7.4453,2440.4,2440.1,1.7844]
[1750791401597,25.562,2440.4,2440.1,1.7844]
[1750791401796,0.65534,2440.2,2440.1,0.43]
[1750791402896,1.70749602,2440.2,2440.1,0.43]
[1750791403097,0.65534,2440.2,2440.1,0.43]
[1750791403599,0.65534,2440.2,2440.1,1.08536]
[1750791403799,0.65534,2440.2,2440.1,0.43]
[1750791404311,3.2078,2440.3,2440.1,1.08536]
[1750791404312,3.86312,2440.3,2440.1,1.08536]
[1750791404603,0.65534,2440.2,2440.1,0.43]
[1750791404906,0.65534,2440.2,2440.1,1.8422]
[1750791405104,3.2078,2440.3,2440.2,0.65534]
[1750791405401,0.65532,2440.3,2440.2,0.34]
[1750791407206,3.86312,2440.3,2440.2,0.34]
[1750791411512,3.86312,2440.3,2440.2,0.99534]
[1750791412008,3.86312,2440.3,2440.2,0.34]
[1750791412212,3.86312,2440.3,2440.2,0.99534]
[1750791412511,29.38812,2440.3,2440.2,0.34]
[1750791413398,30.43976971,2440.3,2440.2,0.34]
[1750791416806,29.78444971,2440.3,2439.8,2.0931]
[1750791417010,0.65542,2439.9,2439.8,2.8131]
[1750791417210,26.16742,2439.9,2439.8,2.8131]
[1750791417910,25.512,2439.9,2439.8,3.46854]
[1750791418110,26.16742,2439.9,2439.8,2.8131]
[1750791418707,26.16136,2440.1,2439.9,0.65542]
[1750791418912,6.789,2440.3,2440.0,1.3101]
[1750791418913,25.501,2440.3,2440.0,1.3101]
[1750791419113,0.65536,2440.1,2440.0,2.3501]
[1750791420407,0.65529,2440.4,2440.0,10.5579]
[1750791420614,1.63793,2440.9,2440.3,0.65529]
[1750791420615,0.65527,2440.5,2440.3,0.65529]
[1750791420810,0.65527,2440.5,2440.4,2.7879]
[1750791421115,3.2078,2441.0,2440.4,4.9379]
[1750791421311,28.7758,2441.0,2440.4,4.9379]
[1750791421522,0.65518,2440.8,2440.6,3.2078]
[1750791421818,0.65518,2440.8,2440.7,1.4001]
[1750791422016,0.65516,2440.9,2440.7,1.7801]
[1750791422222,0.65516,2440.9,2440.8,1.3065]
[1750791422515,0.65514,2441.0,2440.8,2.67166]
[1750791422717,0.65514,2441.0,2440.9,0.718]
[1750791422913,0.65514,2441.0,2440.9,2.3145]
[1750791424414,0.65514,2441.0,2440.9,0.29]
[1750791424621,3.86294,2441.0,2440.9,1e-05]
[1750791424817,0.65526,2440.5,2440.4,0.6698]
[1750791425018,0.65526,2440.5,2440.4,1.5598]
[1750791425719,0.65525,2440.6,2440.4,2.21508]
[1750791426010,25.567,2440.7,2440.4,2.9977]
[1750791426011,0.65526,2440.5,2440.4,2.9977]
[1750791426420,25.567,2440.7,2440.4,3.65298]
[1750791426421,0.65524,2440.6,2440.4,3.65298]
[1750791427321,25.567,2440.7,2440.5,0.65524]
[1750791427322,26.22221,2440.7,2440.5,0.65524]
[1750791427520,26.22221,2440.7,2440.6,1.4379]
[1750791427822,26.22221,2440.7,2440.6,1.6179]
[1750791428220,25.567,2440.7,2440.6,2.27313]
[1750791428520,4.26437854,2441.3,2440.6,1.6179]
[1750791428712,0.65515,2440.9,2440.8,0.65517]
[1750791428912,0.65515,2440.9,2440.8,0.76]
[1750791429423,0.65515,2440.9,2440.8,2.0804]
[1750791429820,0.65515,2440.9,2440.8,2.73557]
[1750791430123,0.65515,2440.9,2440.8,2.0804]
[1750791434215,0.65515,2440.9,2440.8,2.73557]
[1750791434620,0.65515,2440.9,2440.8,2.0804]
[1750791434917,0.65514,2441.0,2440.9,0.65515]
[1750791435119,0.65514,2441.0,2440.9,1.21515]
[1750791435318,0.6551,2441.1,2441.0,0.6551]
[1750791435518,0.6551,2441.1,2441.0,1.6496]
[1750791436425,0.6551,2441.1,2441.0,0.9945]
[1750791438026,0.6551,2441.1,2441.0,1.64962]
[1750791439022,0.65502,2441.4,2441.3,0.65503]
[1750791439219,3.86274,2441.7,2441.3,3.2178]
[1750791439425,0.65494,2441.7,2441.6,0.65493]
[1750791439632,0.65497,2441.6,2441.5,0.65498]
[1750791439831,0.65497,2441.6,2441.5,1.99498]
[1750791440239,0.65495,2441.7,2441.6,0.65496]
[1750791440432,0.65495,2441.7,2441.6,0.12]
[1750791440930,0.65495,2441.7,2441.6,0.77496]
[1750791441732,0.65492,2441.8,2441.7,0.65493]
[1750791442033,0.65492,2441.8,2441.7,0.06]
[1750791444241,0.65492,2441.8,2441.7,0.71493]
[1750791444641,0.65492,2441.8,2441.7,0.06]
[1750791447644,0.65489,2441.9,2441.7,0.06]
[1750791447843,32.206,2442.2,2441.7,0.06]
[1750791447844,0.6548,2442.2,2442.1,0.65482]
[1750791448139,0.40405487,2442.3,2442.2,0.6548]
[1750791448338,0.40405487,2442.3,2442.2,0.8548]
[1750791448541,0.65477,2442.3,2442.2,0.8548]
[1750791448745,0.65477,2442.3,2442.2,0.85479]
[1750791449345,3.52924438,2442.6,2442.2,0.2]
[1750791449643,0.65477,2442.3,2442.2,0.85478]
[1750791450146,0.65477,2442.3,2442.2,0.2]
[1750791450747,3.86257,2442.3,2442.2,0.2]
[1750791451338,5.91757,2442.3,2442.2,0.2]
[1750791451542,0.65491,2441.8,2441.7,1.3387]
[1750791451743,0.65491,2441.8,2441.7,3.1687]
[1750791452548,0.65489,2441.9,2441.7,3.82363]
[1750791452753,0.65487,2442.0,2441.8,0.65491]
[1750791452952,0.65487,2442.0,2441.8,1.76491]
[1750791454044,0.65487,2442.0,2441.8,3.07981]
[1750791454244,0.65488,2441.9,2441.8,3.07979]
[1750791454753,0.65487,2442.0,2441.9,0.65488]
[1750791454952,0.65487,2442.0,2441.9,0.67488]
[1750791455852,0.65487,2442.0,2441.9,0.02]
[1750791460552,0.65487,2442.0,2441.9,0.67488]
[1750791460753,0.65487,2442.0,2441.9,0.02]
[1750791460952,3.86267,2442.0,2441.9,0.02]
[1750791461151,0.65499,2441.5,2441.4,0.03]
[1750791461351,28.5758,2441.6,2441.2,0.65507]
[1750791461651,0.65504,2441.3,2441.2,2.10507]
[1750791461851,0.65499,2441.5,2441.4,0.655]
[1750791462056,0.65499,2441.5,2441.4,1.265]
[1750791462654,0.65499,2441.5,2441.4,2.5646]
[1750791462857,26.74947,2441.6,2441.5,0.65499]
[1750791463060,0.65497,2441.6,2441.5,1.05499]
[1750791463251,0.65497,2441.6,2441.5,2.35459]
[1750791463851,0.65497,2441.6,2441.5,1.6996]
[1750791464155,0.65497,2441.6,2441.5,0.4]
[1750791466161,0.65497,2441.6,2441.5,1.05499]
[1750791466457,0.65497,2441.6,2441.5,0.4]
[1750791467253,1.71392786,2441.6,2441.5,0.4]
[1750791467453,0.65497,2441.6,2441.5,0.4]
[1750791467859,4.92175495,2441.6,2441.5,0.4]
[1750791469771,1.71395495,2441.6,2441.5,0.4]
[1750791470784,1.71395495,2441.6,2441.5,1.05499]
[1750791470969,4.92175495,2441.6,2441.5,0.4]
[1750791471168,4.92175495,2441.6,2441.5,1.05499]
[1750791471381,4.92240582,2441.6,2441.5,0.4]
[1750791471873,3.8908,2441.9,2441.5,0.4]
[1750791472080,0.65491,2441.8,2441.7,0.65492]
[1750791472376,0.65491,2441.8,2441.7,0.04]
[1750791473376,0.65491,2441.8,2441.7,0.69493]
[1750791474177,26.01589,2441.9,2441.8,0.65491]
[1750791474375,27.07647176,2441.9,2441.8,0.65491]
[1750791474877,26.42158176,2441.9,2441.8,0.65491]
[1750791475470,27.07646176,2441.9,2441.8,0.65491]
[1750791475870,26.42158176,2441.9,2441.8,0.65491]
[1750791476480,27.07646176,2441.9,2441.8,0.65491]
[1750791476870,26.42158176,2441.9,2441.8,0.65491]
[1750791477076,26.42158176,2441.9,2441.7,0.65492]
[1750791477272,26.0159,2441.9,2441.8,0.65491]
[1750791477574,27.07828459,2441.9,2441.8,0.65491]
[1750791479372,26.42338459,2441.9,2441.8,0.65491]
[1750791480877,26.42338459,2441.9,2441.8,0.75491]
[1750791481374,27.07826459,2441.9,2441.8,0.75491]
[1750791482781,27.07826459,2441.9,2441.8,0.1]
[1750791482980,27.07826459,2441.9,2441.8,0.75491]
[1750791483677,26.42338459,2441.9,2441.8,0.75491]
[1750791483880,1.06238459,2441.9,2441.8,0.75491]
[1750791484477,25.95883,2442.1,2442.0,0.65483]
[1750791484683,1.06268119,2442.1,2442.0,4.46263]
[1750791484880,0.6792,2442.5,2442.3,0.65475]
[1750791485079,1.06273583,2442.4,2442.3,1.07475]
[1750791485284,1.71748583,2442.4,2442.3,0.42]
[1750791485686,27.02148583,2442.4,2442.3,0.42]
[1750791485887,27.02148583,2442.4,2442.3,1.07477]
[1750791486975,27.02148583,2442.4,2442.3,0.42]
[1750791488382,27.02148583,2442.4,2442.3,1.07477]
[1750791488774,27.02148583,2442.4,2442.3,0.42]
[1750791488986,0.65475,2442.4,2442.3,1.07477]